Cogmind - Beta 13 @@@ ROGUE MODE // 2024.04.13 @ 05:07:55 Player: A Moose Result: Destroyed by Enhanced Grunt with Neutron Cannon Performance ------------- Evolutions (3) 1500 Regions Visited (9) 1800 Robots Destroyed (53) 265 Value Destroyed (1817) 1817 Prototype IDs (16) 320 Alien Tech Used (0) 0 Bonus (600) 600 TOTAL SCORE: 6302 Bonus ------- Aligned with FarCom 300 Met Data Miner 300 Cogmind --------- Core Integrity 0/700 Matter 268/300 Energy 19/100 System Corruption 10% Temperature Cool (0) Movement Core (350) Ox6 Location -7/Data Miner Parts ------- > --- POWER (1) -------- (None) > --- PROPULSION (4) --- (None) > --- UTILITY (6) ------ Large Storage Unit Target Analyzer Core Analyzer > --- WEAPON (2) ------- (None) > --- INVENTORY (15) --- Deuterium Engine Antimatter Reactor Improved Heat Sink Compact Matter Pod (150) Compact Matter Pod (150) Core Analyzer Hacking Suite Makeshift Hacking Suite Remote Datajack Mining Laser Peak State ------------ > --- POWER ------------ Improved Deuterium Engine > --- PROPULSION ------- Improved Titanium Leg Improved Titanium Leg Improved Titanium Leg Improved Titanium Leg > --- UTILITY ---------- Improved Heat Sink Large Storage Unit Improved Sensor Array Improved Signal Interpreter Target Analyzer Improved Medium Armor Plating > --- WEAPON ----------- Flak Gun Bore Cannon > --- INVENTORY -------- Deuterium Engine Light Nuclear Core Carbon-fiber Leg Improved Titanium Leg Compact Matter Pod Compact Matter Pod Improved Sensor Array Core Analyzer Core Analyzer Hacking Suite Makeshift Hacking Suite Advanced Beam Rifle Grenade Launcher Remote Datajack Mining Laser [Rating: 50] Favorites ----------- Power Deuterium Engine Engine Deuterium Engine Power Core Light Nuclear Core Propulsion Improved Titanium Leg Treads Light Treads Leg Improved Titanium Leg Utility Large Storage Unit Device Improved Heat Sink Storage Large Storage Unit Processor Improved Signal Interpreter Protection Improved Medium Armor Plating Weapon Gauss Rifle Energy Gun Advanced Beam Rifle Ballistic Gun Gauss Rifle Ballistic Cannon Bore Cannon Launcher Grenade Launcher Slashing Weapon Makeshift Axe Build | -11 -10 -10 -10 -9 -8 -7 -7 -7 -7 ------- Run | Yrd Mat Min Exi Min Mat Fac Low Low Dat Slots Evolved 6 | . . . . . 4 2 . . . Power . | . . . . . . . . . . Propulsion 2 | . . . . . 1 1 . . . Utility 4 | . . . . . 3 1 . . . Weapon . | . . . . . . . . . . Parts Attached 70 | 6 . . 3 3 20 23 1 7 7 Power 5 | 1 . . . . 2 2 . . . Engine 3 | 1 . . . . 1 1 . . . Core 2 | . . . . . 1 1 . . . Reactor . | . . . . . . . . . . Propulsion 21 | 2 . . . . 6 9 . 2 2 Treads 5 | 2 . . . . 1 2 . . . Leg 16 | . . . . . 5 7 . 2 2 Wheel . | . . . . . . . . . . Hover . | . . . . . . . . . . Flight . | . . . . . . . . . . Utility 29 | 1 . . 3 3 8 10 . 2 2 Device 8 | . . . 1 1 2 3 . 1 . Storage 3 | 1 . . 1 1 . . . . . Processor 7 | . . . 1 . 2 3 . . 1 Hackware . | . . . . . . . . . . Protection 11 | . . . . 1 4 4 . 1 1 Artifact . | . . . . . . . . . . Weapon 15 | 2 . . . . 4 2 1 3 3 Energy Gun 5 | 1 . . . . 1 2 . . 1 Energy Cannon . | . . . . . . . . . . Ballistic Gun 5 | 1 . . . . 3 . . 1 . Ballistic Cannon 1 | . . . . . . . . 1 . Launcher 3 | . . . . . . . 1 1 1 Special Weapon . | . . . . . . . . . . Impact Weapon . | . . . . . . . . . . Slashing Weapon 1 | . . . . . . . . . 1 Piercing Weapon . | . . . . . . . . . . Special Melee Weapon . | . . . . . . . . . . Unidentified Prototypes 3 | . . . 2 . 1 . . . . Parts Lost 32 | . . . . . 6 9 1 . 16 Power 3 | . . . . . 1 1 . . 1 Propulsion 11 | . . . . . 2 3 . . 6 Utility 11 | . . . . . 3 4 . . 4 Weapon 7 | . . . . . . 1 1 . 5 Highest Loss Streak 16 | . . . . . 2 9 1 . 16 To Critical Strikes . | . . . . . . . . . . Average Slot Usage (%) 91 | . 85 85 86 100 80 95 99 96 82 Engine 7 | . 14 14 14 14 6 5 7 7 4 Treads 10 | . 28 28 28 28 10 9 . . . Leg 16 | . . . . . 7 19 30 30 24 Device 5 | . . . . . 1 4 15 15 10 Storage 8 | . 14 14 14 14 9 7 7 7 7 Processor 10 | . . . . . 3 14 15 15 15 Protection 13 | . . . . 13 23 15 7 7 5 Energy Gun 5 | . 14 14 14 14 4 2 7 5 . Ballistic Gun 10 | . 14 14 14 14 13 12 . 4 5 Naked Turns . | . . . . . . . . . . Heaviest Build 52 | 12 12 12 27 30 41 50 45 52 52 Greatest Support 80 | 40 40 40 40 40 45 80 80 80 80 Greatest Overweight (x) 2 | . . . . . 1 2 . . 1 Average Overweight (x) . | . . . . . . . . . . Largest Inventory Capacity 15 | 8 8 8 15 15 15 15 15 15 15 Average Capacity 14 | 7 8 8 8 15 15 15 15 15 15 Most Carried 15 | 5 5 6 8 14 15 15 15 15 15 Average Carried 13 | 1 2 5 6 11 14 14 14 14 14 Final Capacity 15 | 8 8 8 15 15 15 15 15 15 15 Final Carried 15 | 2 5 6 8 14 15 15 14 15 10 Class Distribution -------------------- 54% | Scavenger-Mutant 31% | Mutant 14% | Scavenger-Skirmisher Dominant Class ---------------- Mutant | -10/Materials Mutant | -10/Mines Mutant | -10/Exiles Mutant | -9/Mines Mutant | -8/Materials Scavenger-Mutant | -7/Factory Scavenger-Mutant | -7/Lower Caves Scavenger-Mutant | -7/Lower Caves Scavenger-Mutant | -7/Data Miner Resources | -11 -10 -10 -10 -9 -8 -7 -7 -7 -7 ----------- Run | Yrd Mat Min Exi Min Mat Fac Low Low Dat Matter Collected 2370 | 160 . 168 . 485 384 818 44 311 . Remotely . | . . . . . . . . . . Salvage Created 2107 | . . 54 . . 732 1079 77 165 . Parts 131 | . . 6 . . 48 66 5 6 . Haulers Intercepted 4 | . . . . . 2 2 . . . Recyclers Shooed . | . . . . . . . . . . Parts Field Recycled . | . . . . . . . . . . Retrieved Matter . | . . . . . . . . . . Parts Self-Destructed 13 | . . . . . . . 5 8 . Prevented . | . . . . . . . . . . Kills | -11 -10 -10 -10 -9 -8 -7 -7 -7 -7 ------- Run | Yrd Mat Min Exi Min Mat Fac Low Low Dat Combat Hostiles Destroyed 41 | . . 3 . . 14 16 4 4 . Guns 35 | . . 3 . . 14 16 2 . . Cannons 3 | . . . . . . . . 3 . AOE 3 | . . . . . . . 2 1 . Classes Destroyed 11 | . . 1 . . 6 3 . 1 . Worker 1 | . . . . . . 1 . . . Hauler 4 | . . . . . 2 2 . . . Recycler 3 | . . . . . 1 2 . . . Operator 1 | . . . . . 1 . . . . Watcher 3 | . . . . . 1 2 . . . Swarmer 13 | . . 3 . . 3 3 4 . . Grunt 19 | . . . . . 9 8 . 2 . Brawler 1 | . . . . . . . . 1 . Hunter 3 | . . . . . 2 . . 1 . Programmer 4 | . . . . . . 4 . . . Heavy 1 | . . . . . . 1 . . . Best Kill Streak 4 | . . 3 . . 4 4 4 3 . Combat Bots Only 4 | . . 3 . . 3 4 4 3 . Max Kills in Single Turn 2 | . . 2 . . 1 2 1 1 . Gunslinging 1 | . . 1 . . . 1 . . . Exploded 1 | . . . . . . . 1 1 . Melee . | . . . . . . . . . . Uniques/NPCs Destroyed . | . . . . . . . . . . Combat | -11 -10 -10 -10 -9 -8 -7 -7 -7 -7 -------- Run | Yrd Mat Min Exi Min Mat Fac Low Low Dat Hostile Shots Fired 395 | . . 10 . . 125 134 31 36 59 Missed 107 | . . 5 . . 34 30 7 14 17 Damage Taken 5887 | . . 95 . . 1242 1818 403 367 1962 Core 871 | . . 18 . . 137 177 12 18 509 Absorbed by Shields . | . . . . . . . . . . Redirected to Shielding 251 | . . . . . 134 117 . . . Ignored by Resistances 32 | . . . . . . 32 . . . Core Remaining (%) 89 | 100 . . . 92 75 . . . . Volleys Fired 175 | . . 3 . . 62 88 9 9 4 Largest 2 | . . 2 . . 2 2 2 2 1 Hottest 91 | . . 70 . . 89 89 91 91 61 Shots Fired 333 | . . 6 . . 120 169 15 18 5 Gun 320 | . . 6 . . 120 169 13 9 3 Cannon 9 | . . . . . . . . 8 1 Launcher 4 | . . . . . . . 2 1 1 Special . | . . . . . . . . . . Kinetic 239 | . . 3 . . 80 133 4 16 3 Thermal 90 | . . 3 . . 40 36 9 1 1 Explosive 4 | . . . . . . . 2 1 1 Electromagnetic . | . . . . . . . . . . Robot Hit Streak 16 | . . 4 . . 12 16 5 5 3 Robot Miss Streak 13 | . . 1 . . 13 4 7 5 3 Penetration Max 1 | . . . . . . 1 . . . Secondary Targets 5 | . . 2 . . . 3 . . . Max Gunslinging Chain 1 | . . 1 . . . 1 . . . Shots Hit Robots 211 | . . 5 . . 70 109 6 11 10 Core Hits 120 | . . 3 . . 42 42 6 18 9 Critical Kills 2 | . . . . . . . . 2 . Critical Parts Destroyed 4 | . . . . . 1 2 . 1 . Critical Strikes 11 | . . 1 . . 3 2 1 3 1 Burn 4 | . . 1 . . 2 . 1 . . Destroy 6 | . . . . . 1 2 . 3 . Sever 1 | . . . . . . . . . 1 Melee Attacks 9 | . . . . . . . . . 9 Impact . | . . . . . . . . . . Slashing 9 | . . . . . . . . . 9 Piercing . | . . . . . . . . . . Sneak Attacks . | . . . . . . . . . . Combat Hostiles . | . . . . . . . . . . Follow-up Attacks . | . . . . . . . . . . Damage Inflicted 4419 | . . 67 . 18 1098 2371 235 305 325 Guns 3888 | . . 61 . . 1094 2359 145 175 54 Cannons 96 | . . . . . . . . 96 . Explosions 179 | . . . . . . . 90 34 55 Melee 216 | . . . . . . . . . 216 Ramming 40 | . . 6 . 18 4 12 . . . Kinetic 2966 | . . 36 . . 715 1839 65 271 40 Thermal 1018 | . . 25 . . 379 520 80 . 14 Explosive 179 | . . . . . . . 90 34 55 Electromagnetic . | . . . . . . . . . . Impact . | . . . . . . . . . . Slashing 216 | . . . . . . . . . 216 Piercing . | . . . . . . . . . . Highest Corruption 10 | . . . . . . 10 10 10 10 Average Corruption 6 | . . . . . . 4 10 10 10 Corruption Purged . | . . . . . . . . . . Corruption Blocked . | . . . . . . . . . . Effects 91 | . . . . . . 43 14 28 6 Message Errors 25 | . . . . . . 11 7 5 2 Matter Fused 24 | . . . . . . 12 2 9 1 Heat Flow Errors 7 | . . . . . . 3 1 3 . Energy Discharges 14 | . . . . . . 6 2 6 . Parts Fused 2 | . . . . . . 1 . 1 . Data Loss (minor) 9 | . . . . . . 5 1 3 . Data Loss (major) 4 | . . . . . . 2 1 1 . Misfires 2 | . . . . . . 1 . . 1 Alerts 2 | . . . . . . 2 . . . Misdirections 2 | . . . . . . . . . 2 Overload Shots . | . . . . . . . . . . Overflow Damage . | . . . . . . . . . . Projectiles . | . . . . . . . . . . Explosions . | . . . . . . . . . . Melee . | . . . . . . . . . . Knockbacks 1 | . . . . 1 . . . . . Impact 1 | . . . . 1 . . . . . Kinetic . | . . . . . . . . . . Secondary . | . . . . . . . . . . Self-Inflicted Damage 34 | . . . . . . . 34 . . Shots 2 | . . . . . . . 2 . . Rammed 6 | . . 1 . 3 1 1 . . . Targets Rammed 6 | . . 1 . 3 1 1 . . . Kicked . | . . . . . . . . . . Crushed . | . . . . . . . . . . Highest Temperature 295 | . . 27 . . 295 205 260 230 . Average Temperature 71 | . . 14 . . 78 34 137 89 . Received Heat Transfer 1044 | . . . . . 630 324 . 90 . Siege Activations . | . . . . . . . . . . Robots Corrupted . | . . . . . . . . . . Combat Hostiles . | . . . . . . . . . . Parts Fried . | . . . . . . . . . . Impact Corruptions . | . . . . . . . . . . Robots Melted . | . . . . . . . . . . Combat Hostiles . | . . . . . . . . . . Parts Melted 1 | . . . . . 1 . . . . Heat Transferred 2257 | . . 148 . . 962 888 222 . 37 Parts Sabotaged . | . . . . . . . . . . Parts Stolen . | . . . . . . . . . . Parts Stripped . | . . . . . . . . . . Power Chain Reactions . | . . . . . . . . . . Alert | -11 -10 -10 -10 -9 -8 -7 -7 -7 -7 ------- Run | Yrd Mat Min Exi Min Mat Fac Low Low Dat Peak Influence 261 | . . 70 . . 207 261 . . . Initial 90 | . . . . . . 90 . . . Average 84 | . . 66 . . 91 98 . . . Maximum Alert Level 1 | . . . . . 1 1 . . . Low Security (%) 93 | 100 100 100 . 100 99 88 . . . Level 1 6 | . . . . . . 11 . . . Level 2 . | . . . . . . . . . . Level 3 . | . . . . . . . . . . Level 4 . | . . . . . . . . . . Level 5 . | . . . . . . . . . . High Security . | . . . . . . . . . . Max Security . | . . . . . . . . . . Squads Dispatched 11 | . . . . . 4 7 . . . Investigation 2 | . . . . . 1 1 . . . Extermination 3 | . . . . . . 3 . . . Reinforcement 6 | . . . . . 3 3 . . . Assault . | . . . . . . . . . . Garrison . | . . . . . . . . . . Intercept . | . . . . . . . . . . Searches Triggered . | . . . . . . . . . . Construction Impeded . | . . . . . . . . . . Haulers Reinforced . | . . . . . . . . . . Active Scanning Responses . | . . . . . . . . . . Cargo Convoy Interrupts . | . . . . . . . . . . Stealth | -11 -10 -10 -10 -9 -8 -7 -7 -7 -7 --------- Run | Yrd Mat Min Exi Min Mat Fac Low Low Dat Distress Signals 2 | . . . . . 2 . . . . Communications Jammed . | . . . . . . . . . . Distress Signals . | . . . . . . . . . . Times Spotted 68 | . . 4 . . 24 24 4 6 6 Peak Tracking Total 5 | . . 3 . . 5 5 4 4 3 Tactical Retreats 4 | . . . . . 3 . . 1 . Traps | -11 -10 -10 -10 -9 -8 -7 -7 -7 -7 ------- Run | Yrd Mat Min Exi Min Mat Fac Low Low Dat Traps Triggered 1 | . . . . . . 1 . . . Indirectly . | . . . . . . . . . . Trap Hack Attempts . | . . . . . . . . . . Triggered . | . . . . . . . . . . Disarmed . | . . . . . . . . . . Reprogrammed . | . . . . . . . . . . Reused 2 | . . . . . 2 . . . . Traps Extracted . | . . . . . . . . . . Installed 2 | . . . . . 2 . . . . Triggered 2 | . . . . . 2 . . . . Most Traps Carried 2 | . . . . 2 2 . . . . Machines | -11 -10 -10 -10 -9 -8 -7 -7 -7 -7 ---------- Run | Yrd Mat Min Exi Min Mat Fac Low Low Dat Machines Disabled 5 | . . . . . . 4 . . 1 Max in Single Turn 1 | . . . . . . 1 . . 1 Machines Repaired . | . . . . . . . . . . Machines Dismantled . | . . . . . . . . . . Machines Sabotaged . | . . . . . . . . . . Overloaded Fab Kills . | . . . . . . . . . . Hacking | -11 -10 -10 -10 -9 -8 -7 -7 -7 -7 --------- Run | Yrd Mat Min Exi Min Mat Fac Low Low Dat Machines Accessed 19 | . . 1 . . 5 9 . . 4 Terminals 11 | . . 1 . . 5 5 . . . Fabricators 3 | . . . . . . 3 . . . Repair Stations . | . . . . . . . . . . Recycling Units . | . . . . . . . . . . Scanalyzers . | . . . . . . . . . . Garrison Access 1 | . . . . . . 1 . . . Total Hacks 57 | . . 2 . . 12 15 . . 28 Successful 38 | . . 1 . . 5 4 . . 28 Failed 19 | . . 1 . . 7 11 . . . Catastrophic 4 | . . . . . 1 3 . . . Database Lockouts . | . . . . . . . . . . Manual 1 | . . . 1 . . . . . . Terminals 24 | . . 2 . . 12 10 . . . Fabricators 4 | . . . . . . 4 . . . Repair Stations . | . . . . . . . . . . Recycling Units . | . . . . . . . . . . Scanalyzers . | . . . . . . . . . . Garrison Access 1 | . . . . . . 1 . . . Terminal Hacks 37 | . . 1 . . 5 3 . . 28 Record 12 | . . . . . . 1 . . 11 Part Schematic 10 | . . . . . . . . . 10 Robot Schematic 4 | . . . . . . . . . 4 Prototype ID Bank 4 | . . . . . 1 . . . 3 Level Access Points 1 | . . . . . 1 . . . . Branch Access Points 1 | . . . . . 1 . . . . Emergency Access Points 2 | . . . . . . 2 . . . Locate Traps 1 | . . . . . 1 . . . . Reinforcement Status 1 | . . . . . 1 . . . . Zone Layout 1 | . . 1 . . . . . . . Fabricator Hacks 1 | . . . . . . 1 . . . Network Status 1 | . . . . . . 1 . . . Repair Station Hacks . | . . . . . . . . . . Recycling Unit Hacks . | . . . . . . . . . . Scanalyzer . | . . . . . . . . . . Garrison Access Hacks . | . . . . . . . . . . Unauthorized Hacks . | . . . . . . . . . . Terminals . | . . . . . . . . . . Fabricators . | . . . . . . . . . . Repair Stations . | . . . . . . . . . . Recycling Units . | . . . . . . . . . . Scanalyzers . | . . . . . . . . . . Garrison Access . | . . . . . . . . . . Data Cores Recovered . | . . . . . . . . . . Used . | . . . . . . . . . . Hacking Detections 12 | . . 1 . . 4 7 . . . Full Trace Events 1 | . . . . . 1 . . . . Feedback Events . | . . . . . . . . . . Feedback Blocked . | . . . . . . . . . . Robot Schematics Acquired 4 | . . . . . . . . . 4 Robots Built . | . . . . . . . . . . Authchips . | . . . . . . . . . . Time . | . . . . . . . . . . Total Robot Build Rating . | . . . . . . . . . . Part Schematics Acquired 10 | . . . . . . . . . 10 Parts Built . | . . . . . . . . . . Authchips . | . . . . . . . . . . Time . | . . . . . . . . . . Total Part Build Rating . | . . . . . . . . . . Parts Repaired . | . . . . . . . . . . Time . | . . . . . . . . . . Parts Recycled . | . . . . . . . . . . Recycled Matter . | . . . . . . . . . . Retrieved Matter . | . . . . . . . . . . Retrieved Components . | . . . . . . . . . . Parts Scanalyzed . | . . . . . . . . . . Part Schematics Acquired . | . . . . . . . . . . Parts Damaged . | . . . . . . . . . . Bothacking | -11 -10 -10 -10 -9 -8 -7 -7 -7 -7 ------------ Run | Yrd Mat Min Exi Min Mat Fac Low Low Dat Used RIF Installer . | . . . . . . . . . . Robots Hacked . | . . . . . . . . . . Non-combat . | . . . . . . . . . . Combat . | . . . . . . . . . . Robot Hacks Applied . | . . . . . . . . . . Relay Couplers Released . | . . . . . . . . . . Fabnet Peak Effective % . | . . . . . . . . . . Robots Rewired . | . . . . . . . . . . Allies Hacked . | . . . . . . . . . . Hacks Repelled . | . . . . . . . . . . Allies | -11 -10 -10 -10 -9 -8 -7 -7 -7 -7 -------- Run | Yrd Mat Min Exi Min Mat Fac Low Low Dat Total Allies 1 | . . . . 1 . . . . . Largest Group 1 | . . . . 1 . . . . . Highest-Rated Group 31 | . . . . 31 . . . . . Highest-Rated Ally 31 | . . . . 31 . . . . . Total Orders 5 | . . . 2 2 1 . . . . EXPLORE 3 | . . . 1 1 1 . . . . RETURN 2 | . . . 1 1 . . . . . Ally Attacks . | . . . . . . . . . . Total Damage . | . . . . . . . . . . Kills . | . . . . . . . . . . Allies Corrupted . | . . . . . . . . . . Allies Melted . | . . . . . . . . . . Intel | -11 -10 -10 -10 -9 -8 -7 -7 -7 -7 ------- Run | Yrd Mat Min Exi Min Mat Fac Low Low Dat Robot Analysis Total . | . . . . . . . . . . Derelict Logs Recovered 3 | . . . . 1 . . 1 1 . Drone Launches 3 | . . . 1 1 1 . . . . Drone Recoveries 2 | . . . 1 1 . . . . . Exploration | -11 -10 -10 -10 -9 -8 -7 -7 -7 -7 ------------- Run | Yrd Mat Min Exi Min Mat Fac Low Low Dat Turns Passed 5781 | 57 104 118 395 295 1160 2443 313 775 121 Spaces Moved 3051 | 34 64 67 233 161 519 1127 222 558 66 Core 9 | 9 . . . . . . . . . Treads 1393 | 25 64 67 233 161 322 521 . . . Legs 1649 | . . . . . 197 606 222 558 66 Wheels . | . . . . . . . . . . Hover . | . . . . . . . . . . Flight . | . . . . . . . . . . Fastest Speed 50 | 50 160 160 160 160 120 120 130 130 125 Average Speed 158 | 130 160 160 160 160 159 178 130 130 131 Slowest Speed 260 | 160 160 160 160 160 240 260 130 130 200 Overloaded Moves . | . . . . . . . . . . Propulsion Burnouts . | . . . . . . . . . . Robots Hopped . | . . . . . . . . . . Cave-ins Triggered . | . . . . . . . . . . Exploration Rate (%) 48 | 3 23 17 91 97 40 35 47 62 70 Regions Visited 9 Branch Regions 6 Pre-discovered Areas 1 | . . . . . . . . . 1 Known Exits Taken 4 | . . . . . 1 1 1 1 . Unknown Exits Taken 5 | 1 1 1 1 1 . . . . . Scrap Searched 11 | . . . . 1 . . 1 9 . Spaces Dug . | . . . . . . . . . . Terrain Destroyed 19 | . . . . . . 1 6 7 5 Melee . | . . . . . . . . . . Projectile 4 | . . . . . . 1 . 1 2 AOE 15 | . . . . . . . 6 6 3 Terrain Rammed . | . . . . . . . . . . Walls Destroyed . | . . . . . . . . . . Machines Disabled . | . . . . . . . . . . Actions | -11 -10 -10 -10 -9 -8 -7 -7 -7 -7 --------- Run | Yrd Mat Min Exi Min Mat Fac Low Low Dat Total 3666 | 47 66 71 257 197 734 1386 231 590 87 Wait 264 | . . . 16 23 99 123 . 3 . Move 3042 | 33 63 66 232 160 518 1126 221 557 66 Hop . | . . . . . . . . . . Pick Up 61 | 8 3 1 3 7 15 17 . 6 1 Fast Attach 12 | . . . . . 9 2 . 1 . Attach 34 | 6 . . 3 2 5 10 1 1 6 Detach 7 | . . . 2 1 1 1 . 2 . Swap 24 | . . . . 1 6 11 . 5 1 Drop 30 | . . . 1 . 16 7 . 6 . Fire 175 | . . 3 . . 62 88 9 9 4 Melee 9 | . . . . . . . . . 9 Ram . | . . . . . . . . . . Kick . | . . . . . . . . . . Crush 6 | . . 1 . 3 1 1 . . . Escape Stasis . | . . . . . . . . . . Rewire . | . . . . . . . . . . Trap 2 | . . . . . 2 . . . . Miscellaneous . | . . . . . . . . . . Route ------- -11/Scrapyard -10/Materials -10/Mines -10/Exiles (discovered 2 exits: [*Min x2]) -9/Mines (discovered 2 exits: *Mat x2) -8/Materials (discovered 3 exits: *Fac x3) -7/Factory (discovered 3 exits: *Fac x2 / *Low) -7/Lower Caves -7/Lower Caves -7/Data Miner (discovered 1 exit: *Pro) History --------- Turn | Location | Event 16 | -11/Scrapyard | Discovered new exit (range 16) 58 | -11/Scrapyard | Entered Materials 127 | -10/Materials | Discovered new exit (range 15) 162 | -10/Materials | Entered Mines 163 | -10/Mines | Assembled infested the area 210 | -10/Mines | Met 8R-AWN 273 | -10/Mines | Discovered new exit (range 5) 280 | -10/Mines | Entered Exiles 306 | -10/Exiles | Build established: Mutant 319 | -10/Exiles | Welcomed by 8R-AWN 346 | -10/Exiles | Met EX-HEX 392 | -10/Exiles | Met EX-BIN 415 | -10/Exiles | Aligned with FarCom system 416 | -10/Exiles | Given EX-Vault access code 455 | -10/Exiles | Opened EX-Vault 463 | -10/Exiles | Found Prototype Processor 464 | -10/Exiles | Identified 0b10 Alert Chip 475 | -10/Exiles | Found Prototype Device 476 | -10/Exiles | Identified Supersonic Drone Bay 481 | -10/Exiles | Discovered new exit (range 60) 488 | -10/Exiles | Discovered new exit (range 67) 525 | -10/Exiles | Warned to stay clear of 0b10 Research branches 573 | -10/Exiles | Met EX-DEC 675 | -10/Exiles | Left Exiles lab with Supersonic Drone Bay 675 | -10/Exiles | Entered Mines 678 | -9/Mines | Received a Mining Laser from a helpful Derelict 688 | -9/Mines | Discovered new exit (range 56) 689 | -9/Mines | Discovered new exit (range 59) 731 | -9/Mines | Found a hidden stash of uninstalled traps 765 | -9/Mines | Met a Derelict bent on vengeance 858 | -9/Mines | Learned Materials terminal intel 970 | -9/Mines | Entered Materials 970 | -8/Materials | Evolved 4 slots: Propulsion x1, Utility x3 971 | -8/Materials | Loaded intel: 12 terminal locations 1994 | -8/Materials | Discovered new exit (range 14) 2010 | -8/Materials | Identified exit to Factory 2108 | -8/Materials | Build established: Scavenger-Mutant 2130 | -8/Materials | Entered Factory 2130 | -7/Factory | Evolved 2 slots: Propulsion x1, Utility x1 3692 | -7/Factory | Lost 9 parts (1p3n4u1w) 3723 | -7/Factory | Discovered new exit (range 10) 3738 | -7/Factory | Identified exit to Factory 4038 | -7/Factory | Discovered exit to Factory (range 8) 4160 | -7/Factory | Build established: Scavenger-Skirmisher 4494 | -7/Factory | Discovered new exit (range 4) 4498 | -7/Factory | Identified exit to Lower Caves 4554 | -7/Factory | System corruption reached 10% 4573 | -7/Factory | Entered Lower Caves 4741 | -7/Lower Caves | Identified exit to Lower Caves 4863 | -7/Lower Caves | Build established: Scavenger-Mutant 4886 | -7/Lower Caves | Entered another Lower Caves area 4890 | -7/Lower Caves | Encountered a Warlord checkpoint 5101 | -7/Lower Caves | Spotted B-75 Beast 5590 | -7/Lower Caves | Discovered new exit (range 7) 5659 | -7/Lower Caves | Identified exit to Data Miner 5661 | -7/Lower Caves | Entered Data Miner 5661 | -7/Data Miner | Discovered new exit (range 6) 5667 | -7/Data Miner | Identified exit to Proximity Caves 5686 | -7/Data Miner | Met Data Miner 5709 | -7/Data Miner | Data Conduit disabled 5710 | -7/Data Miner | Learned location of Section 7 (-2) 5710 | -7/Data Miner | Acquired the access code to Warlord's prototype stash 5769 | -7/Data Miner | Core integrity fell below 50% 5775 | -7/Data Miner | Core integrity fell below 20% 5782 | -7/Data Miner | Destroyed by Enhanced Grunt with Neutron Cannon Last Messages --------------- Imp. Deuterium Engine destroyed. Imp. Sensor Array destroyed. Imp. Titanium Leg destroyed. Imp. Light Armor Plating destroyed. Enhanced Grunt Antimatter Reactor severed. Imp. Medium Armor Plating destroyed. Imp. Titanium Leg destroyed. Imp. Signal Interpreter destroyed. Imp. Titanium Leg destroyed. Flak Gun destroyed. Imp. Titanium Leg destroyed. Mak. Axe destroyed. Acquired Antimatter Reactor. Grenade Launcher destroyed. Adv. Beam Rifle destroyed. Y0FY>= WHKCL6F88MG18Y42LLK Carbon-fiber Leg destroyed. System corrupted: Titanium Leg stumbles. Titanium Leg destroyed. [Achievement: This Is Interesting...] Map ----- +----------------------------------------------------+ | | | | | | | | | | | | | | | | | | | | | | | | | | | ????????????????????????????????????????????? | | ????????????????????????????????????????????? | | ????????????????????????????????????????????? | | ????????????????????????????????????????????? | | ?????????????????????????????????????####???? | | ??????????###########????????#?????### #???? | | ?????????"""""" """"######?# #????## #???? | | ????????""""" """"""""# ; # # ## > ##???? | | ???????"""""" ##### | | ???????""" | | ??????"""" | | ??????""" | | ??????"" @ # | | ???????""" g """"""""""""""""##### | | ???????"""" g """"###############???? | | ???????"""" ""###?????????????????? | | ???????"""""" g " ##???????????????????? | | ????????####"#; ####????????????????????? | | ???????????#?##; "#???????????????????????? | | ??????????????#; #???????????????????????? | | ??????????????# #???????????????????????? | | ?????????????## "#???????????????????????? | | ?????????????# "#???????????????????????? | | ?????????????##; "#???????????????????????? | | ??????????????## "##??????????????????????? | | ??????????????## ""###????????????????????? | | ???????????#?## " #????????????????????? | | ??????????##"#"X ""###????????????????????? | | ??????????""""" "####???????????????????? | | ??????????""""" X"""""???????????????????? | | ??????????##"#"X "##"#???????????????????? | | ???????????#?## X""""#???????????????????? | | ??????????????## "##"#???????????????????? | | ???????????????#######??????????????????????? | | ????????????????????????????????????????????? | | ????????????????????????????????????????????? | | ????????????????????????????????????????????? | +----------------------------------------------------+ Best States ------------- Heat Dissipation 48 Energy Generation 16 Energy Capacity 290 Matter Stores 300 Matter Capacity 300 Sight Range 16 Robot Scan Range 15 Terrain Scan Density 10 Armor Coverage 375 Resistance: TH 10 Core Shielding 20 Weapon Shielding 66 Evasion (%) 55 Targeting Accuracy 8 Target Analysis 5 Core Analysis 6 Recoil Reduction 2 Item Schematics ----------------- Combat Drone Bay | -7/Data Miner | Free Lgt. Regenerative Plating | -7/Data Miner | Free Cld. Aerolev Unit | -7/Data Miner | Free Gravity Neutralizer | -7/Data Miner | Free Force Rifle | -7/Data Miner | Free Field Propulsion Drive | -7/Data Miner | Free Imp. Thermal Shield | -7/Data Miner | Free Mass Driver | -7/Data Miner | Free Imp. Gravmag System | -7/Data Miner | Free Phase Gun | -7/Data Miner | Free Robot Schematics ------------------ C-17 Slicer | -7/Data Miner | Free R-10 Processor | -7/Data Miner | Free H-55 Commando | -7/Data Miner | Free G-50 Soldier | -7/Data Miner | Free Fabricated ------------ Nothing Alien Tech Used ----------------- None Achievements -------------- This Is Interesting... Challenges ------------ None Game ------ Seed StorageLightTerrabomb Manual? 0 Play Time 00:49:00 Cumulative 34.9 hours Start 2024.04.13 @ 04:16:38 End 2024.04.13 @ 05:07:55 Sessions 1 Manual Loads 0 Difficulty Rogue Special Mode None Game No. 41 Rogue 32 Adventurer 9 Explorer 0 Win Type - Total 0 Types 0/0/0/0/0/0/0/0/0 Lore% 25 Gallery% 39 Achievement% 30 Wizard Run 0 Options --------- Layout 1 ASCII 0 Keyboard 0 Movement Numpad Keybinds 0 Fullscreen 1 Font 24/Smallcaps Map View 50x35 Zoom Use 0% Tactical HUD 0 Map Filters NONE Filters NONE Steam 1 RUN: 7ddb09e9-bb73-465a-bd8a-9f62218e571d